fUSD/lending_fUSD_20240427
["ID","MTS","AMOUNT","RATE_DAILY","PERIOD"]
[323745107,1714229458941,-706.21,0.00011506,2]
[323745108,1714229458951,-988.37,0.00011506,2]
[323745109,1714229458960,-2579.85,0.00011506,2]
[323745110,1714229458969,-980.4,0.00011506,2]
[323745111,1714229458979,-1411.08,0.00011506,2]
[323745112,1714229458988,-732.9,0.00011506,2]
[323745113,1714229458997,-500.0,0.00011506,2]
[323745114,1714229459006,-640.53,0.00011506,2]
[323745115,1714229459016,-530.91,0.00011506,2]
[323745116,1714229459026,-4597.99,0.00011506,2]
[323745117,1714229459036,-500.0,0.00011506,2]
[323745118,1714229459045,-1136.82,0.00011506,2]
[323745119,1714229459055,-1969.89,0.00011506,2]
[323745120,1714229459065,-3438.71,0.00011506,2]
[323745121,1714229459074,-500.0,0.00011506,2]
[323745122,1714229459083,-500.0,0.00011506,2]
[323745123,1714229459094,-1720.52,0.00011506,2]
[323745124,1714229459103,-1450.38,0.00011506,2]
[323745125,1714229459113,-633.3,0.00011506,2]
[323745126,1714229459123,-500.0,0.00011506,2]
[323745127,1714229459133,-502.93,0.00011506,2]
[323745128,1714229459143,-500.0,0.00011506,2]
[323745129,1714229459152,-769.83,0.00011506,2]
[323745130,1714229459161,-4461.22,0.00011506,2]
[323745131,1714229459170,-500.0,0.00011506,2]
[323745132,1714229459179,-500.0,0.00011506,2]
[323745133,1714229459188,-2069.51,0.00011506,2]
[323745134,1714229459198,-654.02,0.00011506,2]
[323745135,1714229459207,-500.0,0.00011506,2]
[323745136,1714229459218,-2091.06,0.00011506,2]
[323745137,1714229459228,-1788.4,0.00011506,2]
[323745138,1714229459237,-889.74,0.00011506,2]
[323745139,1714229459248,-776.35,0.00011506,2]
[323745140,1714229459257,-500.0,0.00011506,2]
[323745141,1714229459266,-500.0,0.00011506,2]
[323745142,1714229459276,-1999.8,0.00011506,2]
[323745143,1714229459285,-1547.37,0.00011506,2]
[323745144,1714229459295,-514.22887567,0.00011506,2]
[323745145,1714229459304,-500.0,0.00011506,2]
[323745146,1714229459315,-500.0,0.00011506,2]
[323745147,1714229459325,-735.5,0.00011506,2]
[323745148,1714229459334,-628.03,0.00011506,2]
[323745149,1714229459344,-806.1,0.00011506,2]
[323745150,1714229459353,-1581.67,0.00011506,2]
[323745151,1714229459362,-766.18,0.00011506,2]
[323745152,1714229459373,-527.94,0.00011506,2]
[323745153,1714229459382,-500.0,0.00011506,2]
[323745154,1714229459391,-500.0,0.00011506,2]
[323745155,1714229459402,-1948.72,0.00011506,2]
[323745156,1714229459411,-1053.71,0.00011506,2]
[323745157,1714229459422,-500.0,0.00011506,2]
[323745158,1714229459431,-1287.47,0.00011506,2]
[323745159,1714229459443,-500.0,0.00011506,2]
[323745160,1714229459453,-1067.42,0.00011506,2]
[323745161,1714229459463,-1409.44,0.00011506,2]
[323745162,1714229459473,-500.0,0.00011506,2]
[323745163,1714229459483,-802.63,0.00011506,2]
[323745164,1714229459492,-745.93,0.00011506,2]
[323745165,1714229459502,-523.66,0.00011506,2]
[323745166,1714229459512,-500.0,0.00011506,2]
[323745167,1714229459522,-1325.8,0.00011506,2]
[323745168,1714229459532,-500.0,0.00011506,2]
[323745169,1714229459544,-1130.69125215,0.00011544,2]
[323745170,1714229459553,-193.53761118,0.00011556,2]
[323745171,1714229459564,-1086.24846867,0.00011564,2]
[323745172,1714229459575,-446.74,0.00011568,2]
[323745173,1714229459585,-4608.43723326,0.0001158,2]
[323745174,1714229459595,-654.0,0.00011593,2]
[323745175,1714229459605,-155.0,0.000116,2]
[323745176,1714229459614,-3000.0,0.0001168,2]
[323745177,1714229459622,-1656.0,0.000117,2]
[323745178,1714229459632,-500.0,0.00011708,2]
[323745179,1714229459641,-500.0,0.00011708,2]
[323745180,1714229459652,-500.0,0.00011708,2]
[323745181,1714229459661,-1000.0,0.00011755,2]
[323745182,1714229459671,-500.0,0.00011755,2]
[323745183,1714229459680,-3004.50780047,0.00011779,2]
[323745184,1714229459689,-500.0,0.00011779,2]
[323745185,1714229459698,-500.0,0.0001178,2]
[323745186,1714229459708,-315.28,0.0001178,2]
[323745187,1714229459717,-500.0,0.0001178,2]
[323745188,1714229459726,-574.71,0.0001178,2]
[323745189,1714229459735,-549.11,0.0001178,2]
[323745190,1714229459745,-500.19879999,0.0001178,2]
[323745191,1714229459754,-500.0,0.0001178,2]
[323745192,1714229459764,-500.0,0.0001178,2]
[323745193,1714229459773,-500.0,0.0001178,2]
[323745194,1714229459783,-522.87,0.0001178,2]
[323745195,1714229459792,-500.0,0.0001178,2]
[323745196,1714229459801,-512.25,0.0001178,2]
[323745197,1714229459810,-500.0,0.0001178,2]
[323745198,1714229459822,-500.0,0.0001178,2]
[323745199,1714229459832,-820.52,0.0001178,2]
[323745200,1714229459842,-500.0,0.0001178,2]
[323745201,1714229459852,-500.0,0.0001178,2]
[323745202,1714229459862,-500.0,0.0001178,2]
[323745203,1714229459871,-448.72501078,0.0001178,2]
[323745204,1714229459880,-500.0,0.0001178,2]
[323745205,1714229459891,-178.50930107,0.0001178,2]
[323745206,1714229459902,-500.0,0.0001178,2]
[323745207,1714229459912,-500.0,0.0001178,2]
[323745208,1714229459922,-500.0,0.0001178,2]
[323745209,1714229459932,-1273.51,0.0001178,2]
[323745210,1714229459942,-500.0,0.0001178,2]
[323745211,1714229459951,-626.65,0.0001178,2]
[323745212,1714229459961,-500.0,0.0001178,2]
[323745213,1714229459972,-500.0,0.0001178,2]
[323745214,1714229459981,-500.0,0.0001178,2]
[323745215,1714229459990,-545.4,0.0001178,2]
[323745216,1714229459999,-500.0,0.0001178,2]
[323745217,1714229460009,-500.0,0.0001178,2]
[323745218,1714229460018,-500.0,0.0001178,2]
[323745219,1714229460027,-771.92,0.0001178,2]
[323745220,1714229460036,-500.0,0.0001178,2]
[323745221,1714229460045,-846.79,0.0001178,2]
[323745222,1714229460055,-952.96,0.0001178,2]
[323745223,1714229460064,-500.0,0.0001178,2]
[323745224,1714229460073,-361.22,0.0001178,2]
[323745225,1714229460082,-500.0,0.0001178,2]
[323745226,1714229460092,-500.0,0.0001178,2]
[323745227,1714229460101,-1178.67,0.0001178,2]
[323745228,1714229460111,-1079.0,0.0001178,2]
[323745229,1714229460121,-1124.06,0.0001178,2]
[323745230,1714229460130,-1105.4,0.0001178,2]
[323745231,1714229460139,-500.0,0.0001178,2]
[323745232,1714229460148,-500.0,0.0001178,2]
[323745233,1714229460157,-660.93,0.0001178,2]
[323745234,1714229460166,-500.0,0.0001178,2]
[323745235,1714229460175,-500.0,0.0001178,2]
[323745236,1714229460184,-500.0,0.0001178,2]
[323745237,1714229460193,-500.0,0.0001178,2]
[323745238,1714229460202,-783.18,0.0001178,2]
[323745239,1714229460211,-677.29,0.0001178,2]
[323745240,1714229460221,-559.77,0.0001178,2]
[323745241,1714229460230,-561.17,0.0001178,2]
[323745242,1714229460240,-500.0,0.0001178,2]
[323745243,1714229460249,-644.51,0.0001178,2]
[323745244,1714229460259,-866.07,0.0001178,2]
[323745245,1714229460268,-507.85,0.0001178,2]
[323745246,1714229460277,-500.0,0.0001178,2]
[323745247,1714229460286,-500.0,0.0001178,2]
[323745248,1714229460295,-571.88874838,0.0001178,2]
[323745249,1714229460304,-500.0,0.0001178,2]
[323745250,1714229460317,-500.77,0.0001178,2]
[323745251,1714229460326,-307.92,0.0001178,2]
[323745252,1714229460336,-1310.88,0.0001178,2]
[323745253,1714229460345,-500.0,0.0001178,2]
[323745254,1714229460354,-784.57,0.0001178,2]
[323745255,1714229460363,-524.18,0.0001178,2]
[323745256,1714229460372,-500.0,0.0001178,2]
[323745257,1714229460382,-1101.88,0.0001178,2]
[323745258,1714229460392,-641.03,0.0001178,2]
[323745259,1714229460557,-530.68,0.0001178,2]
[323745260,1714229460570,-500.0,0.0001178,2]
[323745261,1714229460580,-500.0,0.0001178,2]
[323745262,1714229460589,-569.41,0.0001178,2]
[323745263,1714229460598,-500.0,0.0001178,2]
[323745264,1714229460608,-501.27,0.0001178,2]
[323745265,1714229460617,-567.27,0.0001178,2]
[323745266,1714229460626,-500.0,0.0001178,2]
[323745267,1714229460635,-500.0,0.0001178,2]
[323745268,1714229460645,-500.0,0.0001178,2]
[323745269,1714229460655,-500.0,0.0001178,2]
[323745270,1714229460664,-855.49,0.0001178,2]
[323745271,1714229460673,-500.0,0.0001178,2]
[323745272,1714229460682,-500.0,0.0001178,2]
[323745273,1714229460691,-500.0,0.0001178,2]
[323745274,1714229460700,-500.0,0.0001178,2]
[323745275,1714229460709,-787.54,0.0001178,2]
[323745276,1714229460718,-500.0,0.0001178,2]
[323745277,1714229460727,-500.0,0.0001178,2]
[323745278,1714229460736,-605.66,0.0001178,2]
[323745279,1714229460746,-1411.92,0.0001178,2]
[323745280,1714229460755,-500.0,0.0001178,2]
[323745281,1714229460764,-373.44218437,0.0001178,2]
[323745282,1714229460774,-934.18,0.0001178,2]
[323745283,1714229460782,-500.0,0.0001178,2]
[323745284,1714229460791,-500.0,0.0001178,2]
[323745285,1714229460800,-500.0,0.0001178,2]
[323745286,1714229460809,-500.0,0.0001178,2]
[323745287,1714229460819,-500.0,0.0001178,2]
[323745288,1714229460828,-644.09,0.0001178,2]
[323745289,1714229460837,-2613.61,0.0001178,2]
[323745290,1714229460846,-866.54,0.0001178,2]
[323745291,1714229460855,-526.63,0.0001178,2]
[323745292,1714229460864,-500.0,0.0001178,2]
[323745293,1714229460873,-500.0,0.0001178,2]
[323745294,1714229460882,-871.91,0.0001178,2]
[323745295,1714229460892,-507.4,0.0001178,2]
[323745296,1714229460904,-500.0,0.0001178,2]
[323745297,1714229460914,-728.51,0.0001178,2]
[323745298,1714229460923,-500.0,0.0001178,2]
[323745299,1714229460933,-1645.42,0.0001178,2]
[323745300,1714229460942,-500.0,0.0001178,2]
[323745301,1714229460952,-869.33,0.0001178,2]
[323745302,1714229460962,-601.05,0.0001178,2]
[323745303,1714229460971,-512.04,0.0001178,2]
[323745304,1714229460981,-500.0,0.0001178,2]
[323745305,1714229460990,-938.6,0.0001178,2]
[323745306,1714229461001,-1150.5,0.0001178,2]
[323745307,1714229461011,-3660.66,0.0001178,2]
[323745308,1714229461022,-10188.34,0.0001178,2]
[323745309,1714229461031,-500.0,0.0001178,2]
[323745310,1714229461042,-1460.35,0.0001178,2]
[323745311,1714229461053,-500.0,0.0001178,2]
[323745312,1714229461063,-1806.86,0.0001178,2]
[323745313,1714229461072,-829.0,0.0001178,2]
[323745314,1714229461081,-1364.54,0.0001178,2]
[323745315,1714229461091,-500.0,0.0001178,2]
[323745316,1714229461101,-1900.35,0.0001178,2]
[323745317,1714229461112,-918.3,0.0001178,2]
[323745318,1714229461123,-500.0,0.0001178,2]
[323745319,1714229461133,-1888.49,0.0001178,2]
[323745320,1714229461142,-520.15,0.0001178,2]
[323745321,1714229461153,-2149.49,0.0001178,2]
[323745322,1714229461163,-2172.29,0.0001178,2]
[323745323,1714229461172,-1243.08,0.0001178,2]
[323745324,1714229461182,-500.0,0.0001178,2]
[323745325,1714229461190,-854.67,0.0001178,2]
[323745326,1714229461200,-500.0,0.0001178,2]
[323745327,1714229461209,-500.0,0.0001178,2]
[323745328,1714229461218,-989.0,0.0001178,2]
[323745329,1714229461229,-500.0,0.0001178,2]
[323745330,1714229461239,-1209.85,0.0001178,2]
[323745331,1714229461249,-598.05,0.0001178,2]
[323745332,1714229461258,-959.82,0.0001178,2]
[323745333,1714229461267,-500.0,0.0001178,2]
[323745334,1714229461276,-530.09,0.0001178,2]
[323745335,1714229461285,-1008.95,0.0001178,2]
[323745336,1714229461294,-500.0,0.0001178,2]
[323745337,1714229461304,-1459.27,0.0001178,2]
[323745338,1714229461315,-2768.71,0.0001178,2]
[323745339,1714229461326,-500.0,0.0001178,2]
[323745340,1714229461335,-16234.13,0.0001178,2]
[323745341,1714229461346,-500.0,0.0001178,2]
[323745342,1714229461356,-2123.31,0.0001178,2]
[323745343,1714229461367,-6724.94,0.0001178,2]
[323745344,1714229461376,-789.27,0.0001178,2]
[323745345,1714229461386,-500.0,0.0001178,2]
[323745346,1714229461398,-940.04,0.0001178,2]
[323745347,1714229461408,-3390.84,0.0001178,2]
[323745348,1714229461418,-911.03,0.0001178,2]
[323745349,1714229461428,-1043.33,0.0001178,2]
[323745350,1714229461438,-500.0,0.0001178,2]
[323745351,1714229461448,-686.56,0.0001178,2]
[323745352,1714229461458,-500.0,0.0001178,2]
[323745353,1714229461468,-801.56,0.0001178,2]
[323745354,1714229461477,-1303.11,0.0001178,2]
[323745355,1714229461487,-4000.64,0.0001178,2]
[323745356,1714229461496,-1779.1,0.0001178,2]
[323745357,1714229461505,-1110.63,0.0001178,2]
[323745358,1714229461514,-818.34,0.0001178,2]
[323745359,1714229461524,-680.37,0.0001178,2]
[323745360,1714229461533,-500.0,0.0001178,2]
[323745361,1714229461542,-500.0,0.0001178,2]
[323745362,1714229461552,-500.0,0.0001178,2]
[323745363,1714229461561,-500.0,0.0001178,2]
[323745364,1714229461570,-938.64,0.0001178,2]
[323745365,1714229461580,-513.38,0.0001178,2]
[323745366,1714229461590,-1120.33,0.0001178,2]
[323745367,1714229461600,-500.0,0.0001178,2]
[323745368,1714229461610,-2348.53,0.0001178,2]
[323745369,1714229461619,-1143.83,0.0001178,2]
[323745370,1714229461628,-500.0,0.0001178,2]
[323745371,1714229461638,-2033.72,0.0001178,2]
[323745372,1714229461649,-204.11828895,0.0001178,2]
[323745373,1714229461667,-459.71368962,0.0001178,2]
[323745374,1714229461678,-601.58802143,0.0001178,2]
[323745375,1714229461687,-1525.96,0.0001178,2]
[323745376,1714229461697,-992.88,0.0001178,2]
[323745377,1714229461706,-2376.63,0.0001178,2]
[323745378,1714229461716,-511.55,0.0001178,2]
[323745379,1714229461725,-1688.53,0.0001178,2]
[323745380,1714229461734,-1154.69,0.0001178,2]
[323745381,1714229461743,-1554.36,0.0001178,2]
[323745382,1714229461753,-500.0,0.0001178,2]
[323745383,1714229461762,-1783.62,0.0001178,2]
[323745384,1714229461772,-3671.0,0.0001178,2]
[323745385,1714229461781,-1902.5473777,0.0001178,2]
[323745386,1714229461793,-38.5426223,0.0001178,2]
[323745387,1714229461802,-570.42,0.0001178,2]
[323745388,1714229461811,-299.5473777,0.0001178,2]
[323745389,1714229461824,-260.4526223,0.0001178,2]
[323745390,1714229461833,-2797.22,0.0001178,2]
[323745391,1714229461843,-500.0,0.0001178,2]
[323745392,1714229461853,-712.77,0.0001178,2]
[323745393,1714229461863,-2018.69,0.0001178,2]
[323745394,1714229461874,-500.0,0.0001178,2]
[323745395,1714229461883,-1792.59,0.0001178,2]
[323745396,1714229461893,-600.18,0.0001178,2]
[323745397,1714229461904,-1159.33,0.0001178,2]
[323745398,1714229461913,-915.9,0.0001178,2]
[323745399,1714229461924,-882.84,0.0001178,2]
[323745400,1714229461934,-821.49,0.0001178,2]
[323745401,1714229461944,-500.0,0.0001178,2]
[323745402,1714229461954,-608.92,0.0001178,2]
[323745403,1714229461964,-599.99785628,0.0001178,2]
[323745404,1714229461973,-1984.53,0.0001178,2]
[323745405,1714229461982,-1937.96,0.0001178,2]
[323745406,1714229461992,-500.0,0.0001178,2]
[323745407,1714229462002,-706.21,0.0001178,2]
[323745408,1714229462011,-2579.85,0.0001178,2]
[323745409,1714229462021,-988.37,0.0001178,2]
[323745410,1714229462031,-980.4,0.0001178,2]
[323745411,1714229462041,-1411.08,0.0001178,2]
[323745412,1714229462050,-732.9,0.0001178,2]
[323745413,1714229462060,-500.0,0.0001178,2]
[323745414,1714229462069,-640.53,0.0001178,2]
[323745415,1714229462078,-530.91,0.0001178,2]
[323745416,1714229462087,-4597.99,0.0001178,2]
[323745417,1714229462095,-500.0,0.0001178,2]
[323745418,1714229462105,-1136.82,0.0001178,2]
[323745419,1714229462114,-1969.89,0.0001178,2]
[323745420,1714229462123,-3438.71,0.0001178,2]
[323745421,1714229462132,-500.0,0.0001178,2]
[323745422,1714229462142,-1720.52,0.0001178,2]
[323745423,1714229462154,-1450.38,0.0001178,2]
[323745424,1714229462163,-633.3,0.0001178,2]
[323745425,1714229462172,-500.0,0.0001178,2]
[323745426,1714229462181,-502.93,0.0001178,2]
[323745427,1714229462190,-500.0,0.0001178,2]
[323745428,1714229462198,-769.83,0.0001178,2]
[323745429,1714229462207,-4461.22,0.0001178,2]
[323745430,1714229462217,-500.0,0.0001178,2]
[323745431,1714229462226,-2069.51,0.0001178,2]
[323745432,1714229462235,-654.02,0.0001178,2]
[323745433,1714229462244,-500.0,0.0001178,2]
[323745434,1714229462253,-2091.06,0.0001178,2]
[323745435,1714229462262,-1788.4,0.0001178,2]
[323745436,1714229462271,-889.74,0.0001178,2]
[323745437,1714229462280,-776.35,0.0001178,2]
[323745438,1714229462289,-500.0,0.0001178,2]
[323745439,1714229462298,-500.0,0.0001178,2]
[323745440,1714229462308,-1999.8,0.0001178,2]
[323745441,1714229462320,-1547.37,0.0001178,2]
[323745442,1714229462329,-500.0,0.0001178,2]
[323745443,1714229462338,-547.44257028,0.0001178,2]
[323745444,1714229462347,-735.5,0.0001178,2]
[323745445,1714229462357,-628.03,0.0001178,2]
[323745446,1714229462366,-806.1,0.0001178,2]
[323745447,1714229462375,-1581.67,0.0001178,2]
[323745448,1714229462384,-766.18,0.0001178,2]
[323745449,1714229462394,-527.94,0.0001178,2]
[323745450,1714229462404,-500.0,0.0001178,2]
[323745451,1714229462413,-500.0,0.0001178,2]
[323745452,1714229462422,-1948.72,0.0001178,2]
[323745453,1714229462431,-1053.71,0.0001178,2]
[323745454,1714229462440,-182.11,0.0001178,2]
[323745455,1714229462449,-1287.47,0.0001178,2]
[323745456,1714229462458,-500.0,0.0001178,2]
[323745457,1714229462467,-1067.42,0.0001178,2]
[323745458,1714229462476,-1409.44,0.0001178,2]
[323745459,1714229462485,-802.63,0.0001178,2]
[323745460,1714229462495,-745.93,0.0001178,2]
[323745461,1714229462504,-523.66,0.0001178,2]
[323745462,1714229462513,-1325.8,0.0001178,2]
[323745463,1714229462528,-500.0,0.0001178,2]
[323745464,1714229462538,-500.0,0.0001178,2]
[323745465,1714229462547,-25377.13270739,0.00011788,2]
[323745466,1714229462556,-193.53761118,0.00011788,2]
[323745467,1714229462565,-419.75416161,0.00011788,2]
[323745468,1714229462574,-651.51020395,0.00011788,2]
[323745469,1714229462584,-768.99752731,0.00011788,2]
[323745470,1714229462593,-171.69622301,0.00011789,2]
[323745471,1714229462602,-3176.0252012,0.00011791,2]
[323745472,1714229462611,-193.9052991,0.00011791,2]
[323745473,1714229462621,-5023.6443696,0.00011792,2]
[323745474,1714229462629,-7927.356693,0.000118,2]
[323745475,1714229462642,-4328.499685,0.000118,2]
[323745476,1714229462662,-438.34852795,0.000118,2]
[323745477,1714229462673,-27975.46177375,0.000118,2]
[323745493,1714230053198,-2180.57537937,8.616e-05,2]
[323745494,1714230053219,-1819.42462063,8.617e-05,2]
[323745495,1714230055070,-2594.2988751,8.617e-05,2]
[323745496,1714230055092,-658.02,8.619e-05,2]
[323745497,1714230055117,-183.91,8.62e-05,2]
[323745498,1714230055141,-150.0,0.00010262,2]
[323745499,1714230055165,-413.7711249,0.00010263,2]
[323745500,1714230057424,-4000.0,0.00010263,2]
[323745501,1714230082813,-4000.0,0.00010263,2]
[323745502,1714230088814,-3234.6388751,0.00010263,2]
[323745503,1714230088836,-652.28,0.00010363,2]
[323745504,1714230088858,-113.0811249,0.00010446,2]
[323745505,1714230293042,174.71,8.219e-05,2]
[323745506,1714230331046,422.87261508,7.397e-05,2]
[323745507,1714230345274,-152.19,0.00010381,2]
[323745508,1714230345297,-3847.81,0.00010446,2]
[323745509,1714230346774,-4000.0,0.00010446,2]
[323745510,1714230347439,-4000.0,0.00010446,2]
[323745511,1714230349049,378.17915482,7.397e-05,2]
[323745512,1714230356437,-229.16,0.00010086,2]
[323745513,1714230356460,-260.97382881,0.00010446,2]
[323745514,1714230356480,-155.0,0.00010446,2]
[323745515,1714230368996,155.0,0.0001,2]
[323745516,1714230390968,155.0,0.0001,2]
[323745517,1714230411010,222.00627378,0.0001,2]
[323745570,1714230448610,2822.85989741,0.00010092,2]
[323745571,1714230448634,798.92010259,0.00010092,2]
[323745573,1714230537510,600.0,0.00010446,2]
[323745574,1714230589126,703.44106518,0.00010379,2]
[323745575,1714230594958,703.44106516,0.00010393,2]
[323745576,1714230600958,703.44106516,0.00010407,2]
[323745594,1714230631784,-354.9588751,0.00010446,2]
[323745595,1714230631794,-152.19,0.00010449,2]
[323745596,1714230631803,-174.71,0.00010479,2]
[323745597,1714230631812,-2696.6911249,0.00010506,2]
[323745598,1714230631941,-287.87646049,0.00010506,2]
[323745833,1714230639872,-152.19,0.00010466,2]
[323745834,1714230639884,-607.82039041,0.00010506,2]
[323745835,1714230639898,-738.70204546,0.00010506,2]
[323745836,1714230640035,-280.28605001,0.00010506,2]
[323745837,1714230640049,-346.10390769,0.00010506,2]
[323745838,1714230640136,-668.16681472,0.00010506,2]
[323745839,1714230640151,-10374.35320632,0.00010506,2]
[323745840,1714230640162,-1502.77,0.00010507,2]
[323745841,1714230640174,-152.19,0.00010557,2]
[323745842,1714230640185,-191.99,0.0001061,2]
[323745843,1714230640197,-410.26,0.0001063,10]
[323745844,1714230640208,-152.19,0.00010648,2]
[323745845,1714230640219,-152.19,0.00010739,2]
[323745846,1714230640230,-152.19,0.0001083,2]
[323745847,1714230640242,-3979.1493,0.00010858,2]
[323745848,1714230640254,-155.0,0.000109,2]
[323745849,1714230640265,-152.19,0.00010921,2]
[323745850,1714230640276,-2124.74218484,0.00010956,2]
[323745851,1714230640287,-185.94479018,0.00010956,2]
[323745852,1714230640299,-155.0,0.00010957,2]
[323745853,1714230640310,-2413.14367389,0.00010957,2]
[323745854,1714230640321,-445.08797457,0.00010957,2]
[323745855,1714230640331,-1338.26822393,0.00010958,2]
[323745856,1714230640342,-500.0,0.00010958,2]
[323745857,1714230640353,-500.0,0.00010958,2]
[323745858,1714230640365,-500.0,0.00010958,2]
[323745859,1714230640376,-500.0,0.00010958,2]
[323745860,1714230640387,-500.0,0.00010958,2]
[323745861,1714230640399,-500.0,0.00010958,2]
[323745862,1714230640410,-500.0,0.00010958,2]
[323745863,1714230640421,-409.56392802,0.00010958,2]
[323745864,1714230640432,-626.50595435,0.00010958,2]
[323745865,1714230640443,-501.19383954,0.00010958,2]
[323745866,1714230640455,-500.0,0.00010958,2]
[323745868,1714230640467,-559.12,0.00010958,2]
[323745869,1714230640478,-500.0,0.00010958,2]
[323745870,1714230640489,-500.0,0.00010958,2]
[323745871,1714230640500,-500.0,0.00010958,2]
[323745872,1714230640512,-794.13,0.00010958,2]
[323745873,1714230640524,-683.77,0.00010958,2]
[323745874,1714230640536,-500.0,0.00010958,2]
[323745875,1714230640548,-416.4577919,0.00010958,2]
[323745876,1714230640560,-500.0,0.00010958,2]
[323745877,1714230640573,-626.82,0.00010958,2]
[323745878,1714230640586,-500.0,0.00010958,2]
[323745879,1714230640598,-500.0,0.00010958,2]
[323745880,1714230640610,-500.0,0.00010958,2]
[323745881,1714230640623,-500.0,0.00010958,2]
[323745882,1714230640633,-1052.41,0.00010958,2]
[323745883,1714230640643,-500.0,0.00010958,2]
[323745884,1714230640652,-500.0,0.00010958,2]
[323745885,1714230640662,-500.0,0.00010958,2]
[323745886,1714230640672,-513.63387456,0.00010958,2]
[323745887,1714230640681,-576.67,0.00010958,2]
[323745888,1714230640690,-500.0,0.00010958,2]
[323745889,1714230641008,-1210.13,0.00010958,2]
[323745890,1714230641027,-500.0,0.00010958,2]
[323745891,1714230641037,-500.0,0.00010958,2]
[323745892,1714230641046,-652.65,0.00010958,2]
[323745893,1714230641055,-325.2852579,0.00010958,2]
[323745894,1714230641081,-174.7147421,0.00010958,2]
[323745895,1714230641091,-522.21,0.00010958,2]
[323745896,1714230641101,-500.0,0.00010958,2]
[323745897,1714230641111,-218.62628137,0.00010958,2]
[323745913,1714230642903,-281.37371863,0.00010958,2]
[323745915,1714230642914,-388.38156788,0.00010958,2]
[323745917,1714230642926,-111.61843212,0.00010958,2]
[323745919,1714230642935,-500.0,0.00010958,2]
[323745921,1714230642944,-500.0,0.00010958,2]
[323745923,1714230642954,-1089.57,0.00010958,2]
[323745925,1714230642964,-951.71156788,0.00010958,2]
[323745928,1714230642984,-4066.40271877,0.00010958,2]
[323745930,1714230642994,-500.0,0.00010958,2]
[323745932,1714230643003,-500.0,0.00010958,2]
[323745933,1714230643013,-721.72,0.00010958,2]
[323745934,1714230643023,-500.0,0.00010958,2]
[323745935,1714230643034,-705.65,0.00010958,2]
[323745936,1714230643045,-500.0,0.00010958,2]
[323745937,1714230643055,-500.0,0.00010958,2]
[323745938,1714230643065,-500.0,0.00010958,2]
[323745939,1714230643075,-564.41,0.00010958,2]
[323745940,1714230643085,-500.0,0.00010958,2]
[323745941,1714230643095,-500.0,0.00010958,2]
[323745942,1714230643105,-500.0,0.00010958,2]
[323745943,1714230643114,-982.23,0.00010958,2]
[323745944,1714230643124,-500.0,0.00010958,2]
[323745945,1714230643134,-500.0,0.00010958,2]
[323745946,1714230643143,-936.71,0.00010958,2]
[323745947,1714230643153,-500.0,0.00010958,2]
[323745948,1714230643163,-500.0,0.00010958,2]
[323745949,1714230643172,-500.0,0.00010958,2]
[323745950,1714230643182,-530.67,0.00010958,2]
[323745951,1714230643192,-500.0,0.00010958,2]